Workbook

Sheet Лист1
A1: Школа | C1: МБОУ СОШ д.Старый Калкаш | F1: Утвердил: | G1: должность | H1: директор
A2: Типовое примерное меню приготавливаемых блюд | G2: фамилия | H2: Кутлушина З.С.
A3: Возрастная категория | E3: 7-11 лет | G3: дата | H3: 3 | I3: 3 | J3: 2025
H4: день | I4: месяц | J4: год
A5: Неделя | B5: День недели | C5: Прием пищи | D5: Раздел меню | E5: Блюда | F5: Вес блюда, г | G5: Белки | H5: Жиры | I5: Углеводы | J5: Калорийность | K5: № рецептуры | L5: Цена
A6: 1 | B6: 1 | C6: Завтрак | D6: гор.блюдо | E6: каша пшенная рассыпчатая | F6: 180 | G6: 8 | H6: 6 | I6: 47 | J6: 273 | K6: 186 | L6: 71.09
D7: гор.блюдо | E7: биточки рубленные из птицы с соусом | F7: 90 | G7: 12 | H7: 12 | I7: 7 | J7: 184 | K7: 135
D8: гор.напиток | E8: чай с сахаром | F8: 200 | G8: 0 | H8: 0 | I8: 9 | J8: 35 | K8: 303
D9: хлеб | E9: хлеб пшеничный формовой из муки высшего сорта | F9: 30 | G9: 2 | H9: 0 | I9: 16 | J9: 74
D10: фрукты
D13: итого | F13: =SUM(F6:F12) -> 500 | G13: =SUM(G6:G12) -> 22 | H13: 18.02 | I13: 79 | J13: 566 | L13: 71.09
A14: =A6 -> 1 | B14: =B6 -> 1 | C14: Обед | D14: закуска
D15: 1 блюдо
D16: 2 блюдо
D17: гарнир
D18: напиток
D19: хлеб бел.
D20: хлеб черн.
D23: итого | F23: =SUM(F14:F22) -> 0 | G23: =SUM(G14:G22) -> 0 | H23: 0 | I23: 0 | J23: 0 | L23: =SUM(L14:L22) -> 0
A24: =A6 -> 1 | B24: =B6 -> 1 | C24: Итого за день: | F24: =F13+F23 -> 500 | G24: =G13+G23 -> 22 | H24: 18.02 | I24: 79 | J24: 566 | L24: =L13+L23 -> 71.09
A25: 1 | B25: 2 | C25: Завтрак | D25: гор.блюдо | E25: каша гречневая рассыпчатая | F25: 150 | G25: 9 | H25: 6 | I25: 45 | J25: 253 | K25: 183 | L25: 71.09
D26: гор.блюдо | E26: мясо кур отварное в соусе | F26: 100 | G26: 12 | H26: 11 | I26: 2 | J26: 157 | K26: 2
D27: гор.напиток | E27: чай с лимоном | F27: 180 | G27: 0 | H27: 0 | I27: 9 | J27: 35 | K27: 29
D28: хлеб | E28: хлеб пшеничный формовой из муки высшего сорта | F28: 30 | G28: 2 | H28: 0 | I28: 16 | J28: 74
D29: фрукты | E29: яблоки | F29: 100 | G29: 0 | H29: 0 | I29: 12 | J29: 47
D32: итого | F32: =SUM(F25:F31) -> 560 | G32: =SUM(G25:G31) -> 23 | H32: =SUM(H25:H31) -> 17 | I32: =SUM(I25:I31) -> 84 | J32: =SUM(J25:J31) -> 566 | L32: 71.09
A33: =A25 -> 1 | B33: =B25 -> 2 | C33: Обед | D33: закуска
D34: 1 блюдо
D35: 2 блюдо
D36: гарнир
D37: напиток
D38: хлеб бел.
D39: хлеб черн.
D42: итого | F42: =SUM(F33:F41) -> 0 | G42: =SUM(G33:G41) -> 0 | H42: =SUM(H33:H41) -> 0 | I42: =SUM(I33:I41) -> 0 | J42: =SUM(J33:J41) -> 0 | L42: 0
A43: =A25 -> 1 | B43: =B25 -> 2 | C43: Итого за день: | F43: =F32+F42 -> 560 | G43: =G32+G42 -> 23 | H43: =H32+H42 -> 17 | I43: =I32+I42 -> 84 | J43: =J32+J42 -> 566 | L43: 71.09
A44: 1 | B44: 3 | C44: Завтрак | D44: гор.блюдо | E44: рагу из мяса кур | F44: 150 | G44: 15 | H44: 16 | I44: 16 | J44: 269 | K44: 39 | L44: 71.09
D45: гор.напиток | E45: чай с сахаром | F45: 200 | G45: 0 | H45: 0 | I45: 9 | J45: 35 | K45: 300
D46: хлеб | E46: хлеб пшеничный формовой из муки высшего сорта с сыром | F46: 38 | G46: 4 | H46: 2 | I46: 16 | J46: 102
D47: фрукты | E47: яблоки | F47: 150 | G47: 1 | H47: 1 | I47: 17 | J47: 73
D50: итого | F50: =SUM(F44:F49) -> 538 | G50: =SUM(G44:G49) -> 20 | H50: =SUM(H44:H49) -> 19 | I50: =SUM(I44:I49) -> 58 | J50: =SUM(J44:J49) -> 479 | L50: 71.09
A51: =A44 -> 1 | B51: =B44 -> 3 | C51: Обед | D51: закуска
D52: 1 блюдо
D53: 2 блюдо
D54: гарнир
D55: напиток
D56: хлеб бел.
D57: хлеб черн.
D60: итого | F60: =SUM(F51:F59) -> 0 | G60: =SUM(G51:G59) -> 0 | H60: =SUM(H51:H59) -> 0 | I60: =SUM(I51:I59) -> 0 | J60: =SUM(J51:J59) -> 0 | L60: 0
A61: =A44 -> 1 | B61: =B44 -> 3 | C61: Итого за день: | F61: =F50+F60 -> 538 | G61: =G50+G60 -> 20 | H61: =H50+H60 -> 19 | I61: =I50+I60 -> 58 | J61: =J50+J60 -> 479 | L61: 71.09
A62: 1 | B62: 4 | C62: Завтрак | D62: гор.блюдо | E62: плов из курицы | F62: 160 | G62: 15 | H62: 19 | I62: 27 | J62: 334 | K62: 138 | L62: 71.09
D64: гор.напиток | E64: чай с сахаром | F64: 200 | G64: 0 | H64: 0 | I64: 9 | J64: 35 | K64: 300
D65: хлеб | E65: хлеб пшеничный формовой из муки высшего сорта | F65: 30 | G65: 2 | H65: 0 | I65: 16 | J65: 74
D66: сладкое | E66: сок яблочный | F66: 200 | G66: 1 | H66: 0 | I66: 21 | J66: 86
D69: итого | F69: 590 | G69: =SUM(G62:G68) -> 18 | H69: =SUM(H62:H68) -> 19 | I69: =SUM(I62:I68) -> 73 | J69: =SUM(J62:J68) -> 529 | L69: 71.09
A70: =A62 -> 1 | B70: =B62 -> 4 | C70: Обед | D70: закуска
D71: 1 блюдо
D72: 2 блюдо
D73: гарнир
D74: напиток
D75: хлеб бел.
D76: хлеб черн.
D79: итого | F79: =SUM(F70:F78) -> 0 | G79: =SUM(G70:G78) -> 0 | H79: =SUM(H70:H78) -> 0 | I79: =SUM(I70:I78) -> 0 | J79: =SUM(J70:J78) -> 0 | L79: 0
A80: =A62 -> 1 | B80: =B62 -> 4 | C80: Итого за день: | F80: =F69+F79 -> 590 | G80: =G69+G79 -> 18 | H80: =H69+H79 -> 19 | I80: =I69+I79 -> 73 | J80: =J69+J79 -> 529 | L80: 71.09
A81: 1 | B81: 5 | C81: Завтрак | D81: гор.блюдо | E81: каша рисовая молочная вязкая | F81: 200 | G81: 6 | H81: 8 | I81: 39 | J81: 248 | K81: 191 | L81: 71.09
D82: напиток | E82: кисель из концентрата на плодовыхэкстрактах | F82: 200 | G82: 0 | H82: 0 | I82: 20 | J82: 76 | K82: 324
D83: хлеб | E83: хлеб пшеничный формовой из муки высшего сорта с сыром | F83: 45 | G83: 6 | H83: 4 | I83: 16 | J83: 126
D84: фрукты | E84: апельсин | F84: 100 | G84: 1 | H84: 0 | I84: 10 | J84: 45
D87: итого | F87: =SUM(F81:F86) -> 545 | G87: =SUM(G81:G86) -> 13 | H87: =SUM(H81:H86) -> 12 | I87: =SUM(I81:I86) -> 85 | J87: =SUM(J81:J86) -> 495 | L87: 71.09
A88: =A81 -> 1 | B88: =B81 -> 5 | C88: Обед | D88: закуска
D89: 1 блюдо
D90: 2 блюдо
D91: гарнир
D92: напиток
D93: хлеб бел.
D94: хлеб черн.
D97: итого | F97: =SUM(F88:F96) -> 0 | G97: =SUM(G88:G96) -> 0 | H97: =SUM(H88:H96) -> 0 | I97: =SUM(I88:I96) -> 0 | J97: =SUM(J88:J96) -> 0 | L97: 0
A98: =A81 -> 1 | B98: =B81 -> 5 | C98: Итого за день: | F98: =F87+F97 -> 545 | G98: =G87+G97 -> 13 | H98: =H87+H97 -> 12 | I98: =I87+I97 -> 85 | J98: =J87+J97 -> 495 | L98: 71.09
A99: 2 | B99: 1 | C99: Завтрак | D99: гор.блюдо | E99: макаронные изделия отварные | F99: 180 | G99: 6 | H99: 4 | I99: 41 | J99: 227 | K99: 227 | L99: 71.09
D100: гор.блюдо | E100: котлеты куриные с соусом | F100: 90 | G100: 8 | H100: 8 | I100: 11 | J100: 151 | K100: 99
D101: гор.напиток | E101: напиток "Валетек" витаминный | F101: 200 | G101: 0 | H101: 0 | I101: 16 | J101: 60 | K101: 317
D102: хлеб | E102: хлеб пшеничный формовой из муки высшего сорта | F102: 30 | G102: 2 | H102: 0 | I102: 16 | J102: 74
D103: фрукты
D106: итого | F106: =SUM(F99:F105) -> 500 | G106: =SUM(G99:G105) -> 16 | H106: 12 | I106: 84 | J106: 512 | L106: 71.09
A107: =A99 -> 2 | B107: =B99 -> 1 | C107: Обед | D107: закуска
D108: 1 блюдо
D109: 2 блюдо
D110: гарнир
D111: напиток
D112: хлеб бел.
D113: хлеб черн.
D116: итого | F116: =SUM(F107:F115) -> 0 | G116: =SUM(G107:G115) -> 0 | H116: 0 | I116: 0 | J116: 0 | L116: =SUM(L107:L115) -> 0
A117: =A99 -> 2 | B117: =B99 -> 1 | C117: Итого за день: | F117: =F106+F116 -> 500 | G117: =G106+G116 -> 16 | H117: =H106+H116 -> 12 | I117: =I106+I116 -> 84 | J117: =J106+J116 -> 512 | L117: 71.09
A118: 2 | B118: 2 | C118: Завтрак | D118: гор.блюдо | E118: каша гречневая рассыпчатая | F118: 170 | G118: 10 | H118: 6 | I118: 51 | J118: 286 | K118: 183 | L118: 71.09
D119: гор.блюдо | E119: фрикадельки из кур с соусом | F119: 100 | G119: 14 | H119: 14 | I119: 7 | J119: 208 | K119: 134
D120: гор.напиток | E120: чай с лимоном и сахаром | F120: 200 | G120: 1 | H120: 0 | I120: 10 | J120: 39 | K120: 302
D121: хлеб | E121: хлеб пшеничный формовой из муки высшего сорта | F121: 30 | G121: 2 | H121: 0 | I121: 16 | J121: 74
D122: фрукты
D125: итого | F125: =SUM(F118:F124) -> 500 | G125: =SUM(G118:G124) -> 27 | H125: 20 | I125: 84 | J125: 607 | L125: 71.09
A126: =A118 -> 2 | B126: =B118 -> 2 | C126: Обед | D126: закуска
D127: 1 блюдо
D128: 2 блюдо
D129: гарнир
D130: напиток
D131: хлеб бел.
D132: хлеб черн.
D135: итого | F135: =SUM(F126:F134) -> 0 | G135: =SUM(G126:G134) -> 0 | H135: 0 | I135: 0 | J135: 0 | L135: =SUM(L126:L134) -> 0
A136: =A118 -> 2 | B136: =B118 -> 2 | C136: Итого за день: | F136: =F125+F135 -> 500 | G136: =G125+G135 -> 27 | H136: =H125+H135 -> 20 | I136: =I125+I135 -> 84 | J136: =J125+J135 -> 607 | L136: 71.09
A137: 2 | B137: 3 | C137: Завтрак | L137: 71.09
D138: гор.блюдо | E138: плов из курицы | F138: 170 | G138: 15 | H138: 19 | I138: 27 | J138: 334 | K138: 138
D139: гор.напиток | E139: чай с сахаром | F139: 200 | G139: 0 | H139: 0 | I139: 9 | J139: 35 | K139: 300
D140: хлеб | E140: хлеб пшеничный формовой из муки высшего сорта | F140: 30 | G140: 2 | H140: 0 | I140: 16 | J140: 74
D141: фрукты | E141: яблоки | F141: 100 | G141: 0 | H141: 0 | I141: 12 | J141: 49
D144: итого | F144: =SUM(F137:F143) -> 500 | G144: =SUM(G137:G143) -> 17 | H144: 19 | I144: 64 | J144: 491.5 | L144: 71.09
A145: =A137 -> 2 | B145: =B137 -> 3 | C145: Обед | D145: закуска
D146: 1 блюдо
D147: 2 блюдо
D148: гарнир
D149: напиток
D150: хлеб бел.
D151: хлеб черн.
D154: итого | F154: =SUM(F145:F153) -> 0 | G154: =SUM(G145:G153) -> 0 | H154: 0 | I154: 0 | J154: 0 | L154: =SUM(L145:L153) -> 0
A155: =A137 -> 2 | B155: =B137 -> 3 | C155: Итого за день: | F155: =F144+F154 -> 500 | G155: =G144+G154 -> 17 | H155: =H144+H154 -> 19 | I155: =I144+I154 -> 64 | J155: =J144+J154 -> 491.5 | L155: 71.09
A156: 2 | B156: 4 | C156: Завтрак | D156: гор.блюдо | E156: каша пшеничная рассыпчатая | F156: 180 | G156: 8 | H156: 5 | I156: 49 | J156: 254 | K156: 185 | L156: 71.09
D157: гор.блюдо | E157: мясо кур отварное в соусе | F157: 90 | G157: 10 | H157: 10 | I157: 2 | J157: 141 | K157: 29
D158: гор.напиток | E158: кофейный напиток с молоком | F158: 200 | G158: 3 | H158: 3 | I158: 14 | J158: 96 | K158: 321
D159: хлеб | E159: хлеб пшеничный формовой из муки высшего сорта | F159: 30 | G159: 2 | H159: 0 | I159: 16 | J159: 74
D160: фрукты
D163: итого | F163: =SUM(F156:F162) -> 500 | G163: =SUM(G156:G162) -> 23 | H163: 18 | I163: 81 | J163: 565 | L163: 71.09
A164: =A156 -> 2 | B164: =B156 -> 4 | C164: Обед | D164: закуска
D165: 1 блюдо
D166: 2 блюдо
D167: гарнир
D168: напиток
D169: хлеб бел.
D170: хлеб черн.
D173: итого | F173: =SUM(F164:F172) -> 0 | G173: =SUM(G164:G172) -> 0 | H173: 0 | I173: 0 | J173: 0 | L173: =SUM(L164:L172) -> 0
A174: =A156 -> 2 | B174: =B156 -> 4 | C174: Итого за день: | F174: =F163+F173 -> 500 | G174: =G163+G173 -> 23 | H174: =H163+H173 -> 18 | I174: =I163+I173 -> 81 | J174: =J163+J173 -> 565 | L174: 71.09
A175: 2 | B175: 5 | C175: Завтрак | D175: гор.блюдо | E175: картофельное пюре | F175: 200 | G175: 4 | H175: 6 | I175: 29 | J175: 187 | K175: 146 | L175: 71.09
D176: гор.блюдо | E176: котлеты куриные с соусом | F176: 90 | G176: 8 | H176: 8 | I176: 11 | J176: 151 | K176: 99
D177: гор.напиток | E177: сок яблочный | F177: 200 | G177: 1 | H177: 0 | I177: 21 | J177: 86
D178: хлеб | E178: хлеб пшеничный формовой из муки высшего сорта | F178: 30 | G178: 2 | H178: 0 | I178: 16 | J178: 74
D179: фрукты
D182: итого | F182: =SUM(F175:F181) -> 520 | G182: =SUM(G175:G181) -> 15 | H182: 14 | I182: 77 | J182: 498 | L182: 71.09
A183: =A175 -> 2 | B183: =B175 -> 5 | C183: Обед | D183: закуска
D184: 1 блюдо
D185: 2 блюдо
D186: гарнир
D187: напиток
D188: хлеб бел.
D189: хлеб черн.
D192: итого | F192: =SUM(F183:F191) -> 0 | G192: =SUM(G183:G191) -> 0 | H192: 0 | I192: 0 | J192: 0 | L192: =SUM(L183:L191) -> 0
A193: =A175 -> 2 | B193: =B175 -> 5 | C193: Итого за день: | F193: =F182+F192 -> 520 | G193: =G182+G192 -> 15 | H193: =H182+H192 -> 14 | I193: =I182+I192 -> 77 | J193: =J182+J192 -> 498 | L193: 71.09
C194: Среднее значение за период: | F194: =(F24+F43+F61+F80+F98+F117+F136+F155+F174+F193)/(IF(F24=0,0,1)+IF(F43=0,0,1)+IF(F61=0,0,1)+IF(F80=0,0,1)+IF(F98=0,0,1)+IF(F117=0,0,1)+IF(F136=0,0,1)+IF(F155=0,0,1)+IF(F174=0,0,1)+IF(F193=0,0,1)) -> 525.3 | G194: =(G24+G43+G61+G80+G98+G117+G136+G155+G174+G193)/(IF(G24=0,0,1)+IF(G43=0,0,1)+IF(G61=0,0,1)+IF(G80=0,0,1)+IF(G98=0,0,1)+IF(G117=0,0,1)+IF(G136=0,0,1)+IF(G155=0,0,1)+IF(G174=0,0,1)+IF(G193=0,0,1)) -> 19.4 | H194: =(H24+H43+H61+H80+H98+H117+H136+H155+H174+H193)/(IF(H24=0,0,1)+IF(H43=0,0,1)+IF(H61=0,0,1)+IF(H80=0,0,1)+IF(H98=0,0,1)+IF(H117=0,0,1)+IF(H136=0,0,1)+IF(H155=0,0,1)+IF(H174=0,0,1)+IF(H193=0,0,1)) -> 16.802 | I194: =(I24+I43+I61+I80+I98+I117+I136+I155+I174+I193)/(IF(I24=0,0,1)+IF(I43=0,0,1)+IF(I61=0,0,1)+IF(I80=0,0,1)+IF(I98=0,0,1)+IF(I117=0,0,1)+IF(I136=0,0,1)+IF(I155=0,0,1)+IF(I174=0,0,1)+IF(I193=0,0,1)) -> 76.9 | J194: =(J24+J43+J61+J80+J98+J117+J136+J155+J174+J193)/(IF(J24=0,0,1)+IF(J43=0,0,1)+IF(J61=0,0,1)+IF(J80=0,0,1)+IF(J98=0,0,1)+IF(J117=0,0,1)+IF(J136=0,0,1)+IF(J155=0,0,1)+IF(J174=0,0,1)+IF(J193=0,0,1)) -> 530.85 | L194: 71.09
